Workbook

Sheet Cenário 1
A5: MODELO - Deve ser adaptado utilizando os valores, taxas e prazos do contrato
A8: Liberação em: | J8: Taxa efetiva anual | K8: Taxa nominal mensal
A9: Data | B9: Valor (R$)
A10: 2025-12-15 | B10: 120000 | J10: 0.1301 | K10: =(((1+J10)^(1/12))-1) -> 0.01024429418
A12: Valores em R$
A13: Data de Vencimento | B13: Principal Atualizado | C13: Juros Compensatórios (1) | F13: Amortização (2) | H13: Prestação | I13: Outros Eventos
C14: Taxa % a.a. | D14: Dias | E14: Valor | F14: nº de parcelas restantes | G14: Valor | I14: Taxa Flat (3) | J14: Remuneração (4) | K14: Total Outros Eventos
A18: 2026-01-15 | B18: =B10 -> 120000 | C18: =J10 -> 0.1301 | D18: =DAYS360(A10,A18,TRUE) -> 30 | E18: =round_to_even(B18*((1+$J$10)^(D18/360)-1),2) -> 1229.32 | F18: 120 | G18: =round_to_even((B18*($K$10*((1+$K$10)^F18))/(((1+$K$10)^F18)-1))-(B18*$K$10),2) -> 512.73 | H18: =G18+E18 -> 1742.05 | I18: ='Taxa Flat 1'!D7 -> 29.1 | J18: ='Taxa Flat 1'!D8 -> 0.34 | K18: =I18+J18 -> 29.44
A19: 2026-02-15 | B19: =round_to_even((B18-G18),2) -> 119487.27 | C19: =C18 -> 0.1301 | D19: =DAYS360(A18,A19,TRUE) -> 30 | E19: =round_to_even(B19*((1+$J$10)^(D19/360)-1),2) -> 1224.06 | F19: =F18-1 -> 119 | G19: =round_to_even((B19*($K$10*((1+$K$10)^F19))/(((1+$K$10)^F19)-1))-(B19*$K$10),2) -> 517.99 | H19: 1742.05
A20: 2026-03-15 | B20: =round_to_even((B19-G19),2) -> 118969.28 | C20: =C19 -> 0.1301 | D20: 30 | E20: =round_to_even(B20*((1+$J$10)^(D20/360)-1),2) -> 1218.76 | F20: 118 | G20: =round_to_even((B20*($K$10*((1+$K$10)^F20))/(((1+$K$10)^F20)-1))-(B20*$K$10),2) -> 523.29 | H20: 1742.05
A21: 2026-04-15 | B21: =round_to_even((B20-G20),2) -> 118445.99 | C21: =C20 -> 0.1301 | D21: =DAYS360(A20,A21,TRUE) -> 30 | E21: =round_to_even(B21*((1+$J$10)^(D21/360)-1),2) -> 1213.4 | F21: 117 | G21: =round_to_even((B21*($K$10*((1+$K$10)^F21))/(((1+$K$10)^F21)-1))-(B21*$K$10),2) -> 528.65 | H21: =G21+E21 -> 1742.05
A22: 2026-05-15 | B22: =round_to_even((B21-G21),2) -> 117917.34 | C22: 0.1301 | D22: 30 | E22: =round_to_even(B22*((1+$J$10)^(D22/360)-1),2) -> 1207.98 | F22: 116 | G22: =round_to_even((B22*($K$10*((1+$K$10)^F22))/(((1+$K$10)^F22)-1))-(B22*$K$10),2) -> 534.07 | H22: 1742.05
A23: 2026-06-15 | B23: =round_to_even((B22-G22),2) -> 117383.27 | C23: 0.1301 | D23: 30 | E23: =round_to_even(B23*((1+$J$10)^(D23/360)-1),2) -> 1202.51 | F23: 115 | G23: =round_to_even((B23*($K$10*((1+$K$10)^F23))/(((1+$K$10)^F23)-1))-(B23*$K$10),2) -> 539.54 | H23: 1742.05
A24: 2026-07-15 | B24: =round_to_even((B23-G23),2) -> 116843.73 | C24: 0.1301 | D24: 30 | E24: =round_to_even(B24*((1+$J$10)^(D24/360)-1),2) -> 1196.98 | F24: 114 | G24: =round_to_even((B24*($K$10*((1+$K$10)^F24))/(((1+$K$10)^F24)-1))-(B24*$K$10),2) -> 545.07 | H24: 1742.05
A25: 2026-08-15 | B25: =round_to_even((B24-G24),2) -> 116298.66 | C25: 0.1301 | D25: 30 | E25: =round_to_even(B25*((1+$J$10)^(D25/360)-1),2) -> 1191.4 | F25: 113 | G25: =round_to_even((B25*($K$10*((1+$K$10)^F25))/(((1+$K$10)^F25)-1))-(B25*$K$10),2) -> 550.65 | H25: 1742.05
A26: 2026-09-15 | B26: =round_to_even((B25-G25),2) -> 115748.01 | C26: 0.1301 | D26: 30 | E26: =round_to_even(B26*((1+$J$10)^(D26/360)-1),2) -> 1185.76 | F26: 112 | G26: =round_to_even((B26*($K$10*((1+$K$10)^F26))/(((1+$K$10)^F26)-1))-(B26*$K$10),2) -> 556.29 | H26: 1742.05
A27: 2026-10-15 | B27: =round_to_even((B26-G26),2) -> 115191.72 | C27: 0.1301 | D27: 30 | E27: =round_to_even(B27*((1+$J$10)^(D27/360)-1),2) -> 1180.06 | F27: 111 | G27: =round_to_even((B27*($K$10*((1+$K$10)^F27))/(((1+$K$10)^F27)-1))-(B27*$K$10),2) -> 561.99 | H27: 1742.05
A28: 2026-11-15 | B28: =round_to_even((B27-G27),2) -> 114629.73 | C28: =C27 -> 0.1301 | D28: =DAYS360(A27,A28,TRUE) -> 30 | E28: =round_to_even(B28*((1+$J$10)^(D28/360)-1),2) -> 1174.3 | F28: 110 | G28: =round_to_even((B28*($K$10*((1+$K$10)^F28))/(((1+$K$10)^F28)-1))-(B28*$K$10),2) -> 567.75 | H28: =G28+E28 -> 1742.05
A29: continua...
A32: FÓRMULAS DE CÁLCULO
A34: (1) Juros Compensatórios
A36: arredondamento em 15 casas decimais
A38: = (Principal x Fator de Atualização)
A40: arredondamento bancário em 2 casas decimais
A42: Fator de Atualização
A43: = (1 + Taxa % a.a.)Dias360/360-1
A46: (2) Amortização (com arredondamento bancário em 2 casas decimais)
A48: = Principal x (TaxaNominalMensal x ((1 + TaxaNominalMensal)ParcelasRestantes)) / (((1 + TaxaNominalMensal)ParcelasRestantes) -1)) - (Principal x TaxaNominalMensal)
A51: (3) Taxa Flat (com arredondamento bancário em 2 casas decimais)
A53: = Liberação x 0,024246%
A54: ou, quando aplicável,
A55: = (Liberação - Devolução de Liberação) x 0,024246%
A58: (4) Remuneração
A59: arredondamento em 15 casas decimais
A61: = (Base de Cálculo x Fator de Remuneração) - Base de Cálculo
A63: arredondamento bancário em 2 casas decimais
A65: Fator de Remuneração
A66: = Produtório dos Fatores Diários SELIC apurados desde a data inicial (inclusive)
A67: até o dia do efetivo pagamento (exclusive)
A68: Fator Diário Selic
A69: = (1+ Selic % a.a.)1/252
A71: arredondamento em 8 casas decimais

Sheet Taxa Flat 1
A1: % TAXA FLAT | B1: 0.00024246
A3: A atualização da Taxa Flat é calculada pelo Fator SELIC, desde o dia da Liberação (inclusive) até o dia do efetivo pagamento (exclusive).
A5: DATA DE VENCIMENTO | B5: DATA DE PAGAMENTO | C5: EVENTO | D5: VALOR | F5: Data | G5: Fator Diário SELIC *
A6: ='Cenário 1'!A10 -> 2025-12-15 | B6: =A6 -> 2025-12-15 | C6: LIBERACAO | D6: ='Cenário 1'!B10 -> 120000 | F6: 2025-12-15 | G6: 1.00055131
A7: ='Cenário 1'!A18 -> 2026-01-15 | B7: =A7 -> 2026-01-15 | C7: TAXA FLAT | D7: =round_to_even(D6*$B$1,2) -> 29.1 | F7: 2025-12-16 | G7: 1.00055131
A8: =A7 -> 2026-01-15 | B8: =B7 -> 2026-01-15 | C8: REMUNERAÇÃO | D8: =round_to_even(D7*ROUND(PRODUCT(G6:G26),15),2)-D7 -> 0.34 | F8: 2025-12-17 | G8: 1.00055131
F9: 2025-12-18 | G9: 1.00055131
F10: 2025-12-19 | G10: 1.00055131
F11: 2025-12-22 | G11: 1.00055131
F12: 2025-12-23 | G12: 1.00055131
F13: 2025-12-24 | G13: 1.00055131
F14: 2025-12-26 | G14: 1.00055131
F15: 2025-12-29 | G15: 1.00055131
F16: 2025-12-30 | G16: 1.00055131
F17: 2025-12-31 | G17: 1.00055131
F18: 2026-01-02 | G18: 1.00055131
F19: 2026-01-05 | G19: 1.00055131
F20: 2026-01-06 | G20: 1.00055131
F21: 2026-01-07 | G21: 1.00055131
F22: 2026-01-08 | G22: 1.00055131
F23: 2026-01-09 | G23: 1.00055131
F24: 2026-01-12 | G24: 1.00055131
F25: 2026-01-13 | G25: 1.00055131
F26: 2026-01-14 | G26: 1.00055131
A27: * | B27: https://www.bcb.gov.br/estabilidadefinanceira/selicdadosdiarios

Sheet Cenário 2
A5: MODELO - Deve ser adaptado utilizando os valores, taxas e prazos do contrato
A8: Liberação em: | J8: Taxa efetiva anual | K8: Taxa nominal mensal
A9: Data | B9: Valor (R$)
A10: 2026-05-20 | B10: 148000 | J10: 0.1413 | K10: =(((1+J10)^(1/12))-1) -> 0.01107487433
A12: Valores em R$
A13: Data de Vencimento | B13: Principal Atualizado | C13: Juros Compensatórios | F13: Amortização | H13: Prestação | I13: Outros Eventos
C14: Taxa % a.a. | D14: Dias | E14: Valor | F14: nº de parcelas restantes | G14: Valor | I14: Taxa Flat (3) | J14: Remuneração (4) | K14: Total Outros Eventos
A18: 2026-07-15 | B18: =B10 -> 148000 | C18: =J10 -> 0.1413 | D18: =DAYS360(A10,A18,TRUE) -> 55 | E18: =round_to_even(B18*((1+$J$10)^(D18/360)-1),2) -> 3018.84 | F18: 12 | G18: =round_to_even((B18*($K$10*((1+$K$10)^F18))/(((1+$K$10)^F18)-1))-(B18*$K$10),2) -> 11600.01 | H18: =G18+E18 -> 14618.85 | I18: ='Taxa Flat 2'!D7 -> 35.88 | J18: ='Taxa Flat 2'!D8 -> 0.33 | K18: =I18+J18 -> 36.21
A19: 2026-08-15 | B19: =round_to_even((B18-G18),2) -> 136399.99 | C19: =C18 -> 0.1413 | D19: =DAYS360(A18,A19,TRUE) -> 30 | E19: =round_to_even(B19*((1+$J$10)^(D19/360)-1),2) -> 1510.61 | F19: =F18-1 -> 11 | G19: =round_to_even((B19*($K$10*((1+$K$10)^F19))/(((1+$K$10)^F19)-1))-(B19*$K$10),2) -> 11728.48 | H19: 13239.09
A20: 2026-09-15 | B20: =round_to_even((B19-G19),2) -> 124671.51 | C20: =C19 -> 0.1413 | D20: 30 | E20: =round_to_even(B20*((1+$J$10)^(D20/360)-1),2) -> 1380.72 | F20: 10 | G20: =round_to_even((B20*($K$10*((1+$K$10)^F20))/(((1+$K$10)^F20)-1))-(B20*$K$10),2) -> 11858.37 | H20: 13239.09
A21: 2026-10-15 | B21: =round_to_even((B20-G20),2) -> 112813.14 | C21: =C20 -> 0.1413 | D21: 30 | E21: =round_to_even(B21*((1+$J$10)^(D21/360)-1),2) -> 1249.39 | F21: 9 | G21: =round_to_even((B21*($K$10*((1+$K$10)^F21))/(((1+$K$10)^F21)-1))-(B21*$K$10),2) -> 11989.7 | H21: 13239.09
A22: 2026-11-15 | B22: =round_to_even((B21-G21),2) -> 100823.44 | C22: 0.1413 | D22: 30 | E22: =round_to_even(B22*((1+$J$10)^(D22/360)-1),2) -> 1116.61 | F22: 8 | G22: =round_to_even((B22*($K$10*((1+$K$10)^F22))/(((1+$K$10)^F22)-1))-(B22*$K$10),2) -> 12122.48 | H22: 13239.09
A23: 2026-12-15 | B23: =round_to_even((B22-G22),2) -> 88700.96 | C23: 0.1413 | D23: 30 | E23: =round_to_even(B23*((1+$J$10)^(D23/360)-1),2) -> 982.35 | F23: 7 | G23: =round_to_even((B23*($K$10*((1+$K$10)^F23))/(((1+$K$10)^F23)-1))-(B23*$K$10),2) -> 12256.74 | H23: 13239.09
A24: continua...
A27: FÓRMULAS DE CÁLCULO
A29: (1) Juros Compensatórios
A31: arredondamento em 15 casas decimais
A33: = (Principal x Fator de Atualização)
A35: arredondamento bancário em 2 casas decimais
A37: Fator de Atualização
A38: = (1 + Taxa % a.a.)Dias360/360-1
A41: (2) Amortização (com arredondamento bancário em 2 casas decimais)
A43: = Principal x (TaxaNominalMensal x ((1 + TaxaNominalMensal)ParcelasRestantes)) / (((1 + TaxaNominalMensal)ParcelasRestantes) -1)) - (Principal x TaxaNominalMensal)
A46: (3) Taxa Flat (com arredondamento bancário em 2 casas decimais)
A48: = Liberação x 0,024246%
A49: ou, quando aplicável,
A50: = (Liberação - Devolução de Liberação) x 0,024246%
A53: (4) Remuneração
A54: arredondamento em 15 casas decimais
A56: = (Base de Cálculo x Fator de Remuneração) - Base de Cálculo
A58: arredondamento bancário em 2 casas decimais
A60: Fator de Remuneração
A61: = Produtório dos Fatores Diários SELIC apurados desde a data inicial (inclusive)
A62: até o dia do efetivo pagamento (exclusive)
A63: Fator Diário Selic
A64: = (1+ Selic % a.a.)1/252
A66: arredondamento em 8 casas decimais

Sheet Taxa Flat 2
A1: % TAXA FLAT | B1: 0.00024246
A3: A atualização da Taxa Flat é calculada pelo Fator SELIC, desde o dia da Liberação (inclusive) até o dia do efetivo pagamento (exclusive).
A5: DATA DE VENCIMENTO | B5: DATA DE PAGAMENTO | C5: EVENTO | D5: VALOR | F5: Data | G5: Fator Diário SELIC *
A6: ='Cenário 2'!A10 -> 2026-05-20 | B6: =A6 -> 2026-05-20 | C6: LIBERACAO | D6: ='Cenário 2'!B10 -> 148000 | F6: 2026-05-20 | G6: 1.000534
A7: 2026-06-15 | B7: =A7 -> 2026-06-15 | C7: TAXA FLAT | D7: =round_to_even(D6*$B$1,2) -> 35.88 | F7: 2026-05-21 | G7: 1.000534
A8: =A7 -> 2026-06-15 | B8: =B7 -> 2026-06-15 | C8: REMUNERAÇÃO | D8: =round_to_even(D7*ROUND(PRODUCT(G6:G22),15),2)-D7 -> 0.33 | F8: 2026-05-22 | G8: 1.000534
F9: 2026-05-25 | G9: 1.000534
F10: 2026-05-26 | G10: 1.000534
F11: 2026-05-27 | G11: 1.000534
F12: 2026-05-28 | G12: 1.000534
F13: 2026-05-29 | G13: 1.000534
F14: 2026-06-01 | G14: 1.000534
F15: 2026-06-02 | G15: 1.000534
F16: 2026-06-03 | G16: 1.000534
F17: 2026-06-05 | G17: 1.000534
F18: 2026-06-08 | G18: 1.000534
F19: 2026-06-09 | G19: 1.000534
F20: 2026-06-10 | G20: 1.000534
F21: 2026-06-11 | G21: 1.000534
F22: 2026-06-12 | G22: 1.000534
A23: * | B23: https://www.bcb.gov.br/estabilidadefinanceira/selicdadosdiarios

Sheet Cenário 3
A5: MODELO - Deve ser adaptado utilizando os valores, taxas e prazos do contrato
A8: Liberação em: | K8: Taxa efetiva anual | L8: Taxa nominal mensal
A9: Data | B9: Valor (R$)
A10: 2025-12-15 | B10: 130000 | K10: 0.1433 | L10: =(((1+K10)^(1/12))-1) -> 0.01122240546
A12: Valores em R$
A13: Data de Vencimento | B13: Principal Atualizado | C13: Juros Compensatórios | F13: Amortização | H13: Prestação | I13: Liquidação | J13: Outros Eventos
C14: Taxa % a.a. | D14: Dias | E14: Valor | F14: nº de parcelas restantes | G14: Valor | J14: Taxa Flat (3) | K14: Remuneração (4) | L14: Total Outros Eventos
A18: 2026-01-15 | B18: =B10 -> 130000 | C18: =K10 -> 0.1433 | D18: =DAYS360(A10,A18,TRUE) -> 30 | E18: =round_to_even(B18*((1+$K$10)^(D18/360)-1),2) -> 1458.91 | F18: 12 | G18: =round_to_even((B18*($L$10*((1+$L$10)^F18))/(((1+$L$10)^F18)-1))-(B18*$L$10),2) -> 10180.83 | H18: =G18+E18 -> 11639.74 | J18: ='Taxa Flat 3'!D7 -> 31.52 | K18: ='Taxa Flat 3'!D8 -> 0.37 | L18: =J18+K18 -> 31.89
A19: 2026-02-15 | B19: =round_to_even((B18-G18),2)-I18 -> 119819.17 | C19: =C18 -> 0.1433 | D19: =DAYS360(A18,A19,TRUE) -> 30 | E19: =round_to_even(B19*((1+$K$10)^(D19/360)-1),2) -> 1344.66 | F19: =F18-1 -> 11 | G19: =round_to_even((B19*($L$10*((1+$L$10)^F19))/(((1+$L$10)^F19)-1))-(B19*$L$10),2) -> 10295.08 | H19: 11639.74
A20: 2026-03-15 | B20: =round_to_even((B19-G19),2)-I19 -> 109524.09 | C20: =C19 -> 0.1433 | D20: 30 | E20: =round_to_even(B20*((1+$K$10)^(D20/360)-1),2) -> 1229.12 | F20: 10 | G20: =round_to_even((B20*($L$10*((1+$L$10)^F20))/(((1+$L$10)^F20)-1))-(B20*$L$10),2) -> 10410.62 | H20: 11639.74
A21: 2026-04-15 | B21: =round_to_even((B20-G20),2)-I20 -> 99113.47 | C21: =C20 -> 0.1433 | D21: 30 | E21: =round_to_even(B21*((1+$K$10)^(D21/360)-1),2) -> 1112.29 | F21: 9 | G21: =round_to_even((B21*($L$10*((1+$L$10)^F21))/(((1+$L$10)^F21)-1))-(B21*$L$10),2) -> 10527.45 | H21: 11639.74
A22: 2026-05-15 | B22: =round_to_even((B21-G21),2)-I21 -> 88586.02 | C22: 0.1433 | D22: 30 | E22: =round_to_even(B22*((1+$K$10)^(D22/360)-1),2) -> 994.15 | F22: 8 | G22: =round_to_even((B22*($L$10*((1+$L$10)^F22))/(((1+$L$10)^F22)-1))-(B22*$L$10),2) -> 10645.59 | H22: 11639.74 | I22: 40000
A23: 2026-06-15 | B23: =round_to_even((B22-G22),2)-I22 -> 37940.43 | C23: 0.1433 | D23: 30 | E23: =round_to_even(B23*((1+$K$10)^(D23/360)-1),2) -> 425.78 | F23: 7 | G23: =round_to_even((B23*($L$10*((1+$L$10)^F23))/(((1+$L$10)^F23)-1))-(B23*$L$10),2) -> 5240.3 | H23: 5666.08
A24: 2026-07-15 | B24: =round_to_even((B23-G23),2)-I23 -> 32700.13 | C24: 0.1433 | D24: 30 | E24: =round_to_even(B24*((1+$K$10)^(D24/360)-1),2) -> 366.97 | F24: 6 | G24: =round_to_even((B24*($L$10*((1+$L$10)^F24))/(((1+$L$10)^F24)-1))-(B24*$L$10),2) -> 5299.11 | H24: 5666.08
A25: 2026-08-15 | B25: =round_to_even((B24-G24),2)-I24 -> 27401.02 | C25: 0.1433 | D25: 30 | E25: =round_to_even(B25*((1+$K$10)^(D25/360)-1),2) -> 307.51 | F25: 5 | G25: =round_to_even((B25*($L$10*((1+$L$10)^F25))/(((1+$L$10)^F25)-1))-(B25*$L$10),2) -> 5358.57 | H25: 5666.08
A26: 2026-09-15 | B26: =round_to_even((B25-G25),2)-I25 -> 22042.45 | C26: 0.1433 | D26: 30 | E26: =round_to_even(B26*((1+$K$10)^(D26/360)-1),2) -> 247.37 | F26: 4 | G26: =round_to_even((B26*($L$10*((1+$L$10)^F26))/(((1+$L$10)^F26)-1))-(B26*$L$10),2) -> 5418.71 | H26: 5666.08
A27: 2026-10-15 | B27: =round_to_even((B26-G26),2)-I26 -> 16623.74 | C27: 0.1433 | D27: 30 | E27: =round_to_even(B27*((1+$K$10)^(D27/360)-1),2) -> 186.56 | F27: 3 | G27: =round_to_even((B27*($L$10*((1+$L$10)^F27))/(((1+$L$10)^F27)-1))-(B27*$L$10),2) -> 5479.52 | H27: 5666.08
A28: 2026-11-15 | B28: =round_to_even((B27-G27),2)-I27 -> 11144.22 | C28: 0.1433 | D28: 30 | E28: =round_to_even(B28*((1+$K$10)^(D28/360)-1),2) -> 125.06 | F28: 2 | G28: =round_to_even((B28*($L$10*((1+$L$10)^F28))/(((1+$L$10)^F28)-1))-(B28*$L$10),2) -> 5541.02 | H28: 5666.08
A29: continua...
A32: FÓRMULAS DE CÁLCULO
A34: (1) Juros Compensatórios
A36: arredondamento em 15 casas decimais
A38: = (Principal x Fator de Atualização)
A40: arredondamento bancário em 2 casas decimais
A42: Fator de Atualização
A43: = (1 + Taxa % a.a.)Dias360/360-1
A46: (2) Amortização (com arredondamento bancário em 2 casas decimais)
A48: = Principal x (TaxaNominalMensal x ((1 + TaxaNominalMensal)ParcelasRestantes)) / (((1 + TaxaNominalMensal)ParcelasRestantes) -1)) - (Principal x TaxaNominalMensal)
A51: (3) Taxa Flat (com arredondamento bancário em 2 casas decimais)
A53: = Liberação x 0,024246%
A54: ou, quando aplicável,
A55: = (Liberação - Devolução de Liberação) x 0,024246%
A58: (4) Remuneração
A59: arredondamento em 15 casas decimais
A61: = (Base de Cálculo x Fator de Remuneração) - Base de Cálculo
A63: arredondamento bancário em 2 casas decimais
A65: Fator de Remuneração
A66: = Produtório dos Fatores Diários SELIC apurados desde a data inicial (inclusive)
A67: até o dia do efetivo pagamento (exclusive)
A68: Fator Diário Selic
A69: = (1+ Selic % a.a.)1/252
A71: arredondamento em 8 casas decimais

Sheet Taxa Flat 3
A1: % TAXA FLAT | B1: 0.00024246
A3: A atualização da Taxa Flat é calculada pelo Fator SELIC, desde o dia da Liberação (inclusive) até o dia do efetivo pagamento (exclusive).
A5: DATA DE VENCIMENTO | B5: DATA DE PAGAMENTO | C5: EVENTO | D5: VALOR | F5: Data | G5: Fator Diário SELIC *
A6: ='Cenário 3'!A10 -> 2025-12-15 | B6: =A6 -> 2025-12-15 | C6: LIBERACAO | D6: ='Cenário 3'!B10 -> 130000 | F6: 2025-12-15 | G6: 1.00055131
A7: ='Cenário 3'!A18 -> 2026-01-15 | B7: =A7 -> 2026-01-15 | C7: TAXA FLAT | D7: =round_to_even(D6*$B$1,2) -> 31.52 | F7: 2025-12-16 | G7: 1.00055131
A8: =A7 -> 2026-01-15 | B8: =B7 -> 2026-01-15 | C8: REMUNERAÇÃO | D8: =round_to_even(D7*ROUND(PRODUCT(G6:G26),15),2)-D7 -> 0.37 | F8: 2025-12-17 | G8: 1.00055131
F9: 2025-12-18 | G9: 1.00055131
F10: 2025-12-19 | G10: 1.00055131
F11: 2025-12-22 | G11: 1.00055131
F12: 2025-12-23 | G12: 1.00055131
F13: 2025-12-24 | G13: 1.00055131
F14: 2025-12-26 | G14: 1.00055131
F15: 2025-12-29 | G15: 1.00055131
F16: 2025-12-30 | G16: 1.00055131
F17: 2025-12-31 | G17: 1.00055131
F18: 2026-01-02 | G18: 1.00055131
F19: 2026-01-05 | G19: 1.00055131
F20: 2026-01-06 | G20: 1.00055131
F21: 2026-01-07 | G21: 1.00055131
F22: 2026-01-08 | G22: 1.00055131
F23: 2026-01-09 | G23: 1.00055131
F24: 2026-01-12 | G24: 1.00055131
F25: 2026-01-13 | G25: 1.00055131
F26: 2026-01-14 | G26: 1.00055131
A27: * | B27: https://www.bcb.gov.br/estabilidadefinanceira/selicdadosdiarios
